[Event "*** Titled Tuesday Blitz"]
[Site "Chess.com"]
[Date "2018.06.05"]
[Round "6"]
[White "GianmarcoVaR"]
[Black "ENEASZ"]
[Result "1-0"]
[WhiteElo "2512"]
[BlackElo "2505"]
[TimeControl "180+2"]
[EndTime "14:26:29 PDT"]
[Termination "GianmarcoVaR won by resignation"]

1. d4 {[%clk 0:03:01.3]} 1... d6 {[%clk 0:03:01]} 2. e4 {[%clk 0:03:01.1]} 2...
Nf6 {[%clk 0:03:01.4]} 3. Nc3 {[%clk 0:03:00.1]} 3... e5 {[%clk 0:03:02.6]} 4.
Nge2 {[%clk 0:02:58.2]} 4... Be7 {[%clk 0:03:00.5]} 5. f3 {[%clk 0:02:57.4]}
5... c6 {[%clk 0:03:01.1]} 6. Be3 {[%clk 0:02:57.6]} 6... b5 {[%clk 0:03:01.8]}
7. dxe5 {[%clk 0:02:52]} 7... dxe5 {[%clk 0:03:02.2]} 8. Qxd8+ {[%clk 0:02:52]}
8... Bxd8 {[%clk 0:03:04.1]} 9. a4 {[%clk 0:02:48.7]} 9... b4 {[%clk 0:03:03.3]}
10. Na2 {[%clk 0:02:48.5]} 10... Be7 {[%clk 0:03:00.4]} 11. Nec1 {[%clk
0:02:30.9]} 11... a5 {[%clk 0:02:39.3]} 12. Bc4 {[%clk 0:02:31]} 12... Ba6
{[%clk 0:02:32.9]} 13. Bxa6 {[%clk 0:02:31.8]} 13... Nxa6 {[%clk 0:02:32]} 14.
Nd3 {[%clk 0:02:32.9]} 14... Nd7 {[%clk 0:02:32.6]} 15. b3 {[%clk 0:02:26.3]}
15... f6 {[%clk 0:02:31.3]} 16. Ke2 {[%clk 0:02:21.4]} 16... Nac5 {[%clk
0:02:30.7]} 17. Nac1 {[%clk 0:02:21.1]} 17... Ne6 {[%clk 0:02:27.6]} 18. Nb2
{[%clk 0:02:22.1]} 18... Bc5 {[%clk 0:02:27.3]} 19. Ncd3 {[%clk 0:02:19.1]}
19... Bxe3 {[%clk 0:02:23.6]} 20. Kxe3 {[%clk 0:02:20.4]} 20... Ke7 {[%clk
0:02:19.5]} 21. Nc4 {[%clk 0:02:15.9]} 21... Rhb8 {[%clk 0:02:14.5]} 22. Rhd1
{[%clk 0:02:10.4]} 22... Nb6 {[%clk 0:02:12.3]} 23. Nxb6 {[%clk 0:02:06.9]}
23... Rxb6 {[%clk 0:02:14.2]} 24. Rd2 {[%clk 0:02:04.5]} 24... c5 {[%clk
0:01:58.5]} 25. Nb2 {[%clk 0:02:01.4]} 25... Nd4 {[%clk 0:01:58.7]} 26. Nc4
{[%clk 0:02:00.3]} 26... Rc6 {[%clk 0:01:58.5]} 27. Kf2 {[%clk 0:01:55.1]} 27...
Ke6 {[%clk 0:01:55]} 28. Ne3 {[%clk 0:01:53.5]} 28... g6 {[%clk 0:01:51.9]} 29.
Re1 {[%clk 0:01:49.6]} 29... Re8 {[%clk 0:01:50]} 30. g3 {[%clk 0:01:46.6]}
30... f5 {[%clk 0:01:44.4]} 31. exf5+ {[%clk 0:01:47.3]} 31... gxf5 {[%clk
0:01:46.3]} 32. Nc4 {[%clk 0:01:48.3]} 32... Kf6 {[%clk 0:01:44.1]} 33. Nxa5
{[%clk 0:01:49.3]} 33... Rc7 {[%clk 0:01:44.3]} 34. Nc4 {[%clk 0:01:47.4]} 34...
e4 {[%clk 0:01:45.7]} 35. fxe4 {[%clk 0:01:43]} 35... fxe4 {[%clk 0:01:47.6]}
36. Rf1 {[%clk 0:01:33.5]} 36... Nf3 {[%clk 0:01:37.3]} 37. Ke3 {[%clk
0:01:33.3]} 37... Ke6 {[%clk 0:01:28.2]} 38. Rd6+ {[%clk 0:01:31.1]} 38... Ke7
{[%clk 0:01:29]} 39. Rh6 {[%clk 0:01:31]} 39... Kf8 {[%clk 0:01:24]} 40. Nd6
{[%clk 0:01:26.8]} 40... Re6 {[%clk 0:01:05.3]} 41. Rxe6 {[%clk 0:01:25.7]} 1-0

[Event "*** Titled Tuesday Blitz"]
[Site "Chess.com"]
[Date "2018.06.05"]
[Round "6"]
[White "Fins0905"]
[Black "Doraemon7"]
[Result "1-0"]
[WhiteElo "2603"]
[BlackElo "2422"]
[TimeControl "180+2"]
[EndTime "14:26:30 PDT"]
[Termination "Fins0905 won by resignation"]

1. d4 {[%clk 0:03:01.9]} 1... d5 {[%clk 0:03:00.9]} 2. c4 {[%clk 0:03:01.9]}
2... c6 {[%clk 0:03:01.3]} 3. cxd5 {[%clk 0:03:01.4]} 3... cxd5 {[%clk
0:03:02.1]} 4. Nc3 {[%clk 0:03:03]} 4... e5 {[%clk 0:02:55.1]} 5. dxe5 {[%clk
0:02:59.7]} 5... d4 {[%clk 0:02:56.1]} 6. Ne4 {[%clk 0:03:01.1]} 6... Qa5+
{[%clk 0:02:55.2]} 7. Bd2 {[%clk 0:03:00.8]} 7... Qxe5 {[%clk 0:02:53.3]} 8. Ng3
{[%clk 0:03:02]} 8... Nc6 {[%clk 0:02:52.8]} 9. Nf3 {[%clk 0:03:02.9]} 9... Qd5
{[%clk 0:02:53.5]} 10. a3 {[%clk 0:02:40.2]} 10... a5 {[%clk 0:02:44.7]} 11. e4
{[%clk 0:02:37.7]} 11... dxe3 {[%clk 0:02:29.6]} 12. Bxe3 {[%clk 0:02:38.2]}
12... Nf6 {[%clk 0:02:21.9]} 13. Qc2 {[%clk 0:02:25.8]} 13... Be6 {[%clk
0:02:08.5]} 14. Be2 {[%clk 0:02:15.6]} 14... Rc8 {[%clk 0:02:02.6]} 15. O-O
{[%clk 0:02:05.3]} 15... Be7 {[%clk 0:01:45.2]} 16. Rfd1 {[%clk 0:01:52.9]}
16... Qb3 {[%clk 0:01:37.5]} 17. Qxb3 {[%clk 0:01:46.8]} 17... Bxb3 {[%clk
0:01:39.4]} 18. Rd2 {[%clk 0:01:48.1]} 18... O-O {[%clk 0:01:22.3]} 19. Nf5
{[%clk 0:01:47.1]} 19... Rfd8 {[%clk 0:01:13.9]} 20. Nxe7+ {[%clk 0:01:34.5]}
20... Nxe7 {[%clk 0:01:14.8]} 21. Rxd8+ {[%clk 0:01:19.1]} 21... Rxd8 {[%clk
0:01:16.7]} 22. Bb6 {[%clk 0:01:18.9]} 22... Rd5 {[%clk 0:01:11.7]} 23. Nd4
{[%clk 0:01:19.1]} 23... Ba4 {[%clk 0:00:49.5]} 24. Bf3 {[%clk 0:01:16.9]} 24...
Rd7 {[%clk 0:00:48.4]} 25. b3 {[%clk 0:01:04.5]} 25... Bc6 {[%clk 0:00:27.7]}
26. Nxc6 {[%clk 0:01:05.1]} 26... Nxc6 {[%clk 0:00:26.6]} 27. Bxc6 {[%clk
0:01:06.3]} 27... bxc6 {[%clk 0:00:28.5]} 28. Bxa5 {[%clk 0:01:07.5]} 28... Nd5
{[%clk 0:00:28.4]} 29. Bd2 {[%clk 0:01:03.8]} 1-0

[Event "*** Titled Tuesday Blitz"]
[Site "Chess.com"]
[Date "2018.06.05"]
[Round "6"]
[White "Amirreza_p"]
[Black "Zhuu96"]
[Result "0-1"]
[WhiteElo "2699"]
[BlackElo "2928"]
[TimeControl "180+2"]
[EndTime "14:26:34 PDT"]
[Termination "Zhuu96 won by resignation"]

1. e4 {[%clk 0:03:01]} 1... c5 {[%clk 0:02:58.5]} 2. c3 {[%clk 0:03:02.3]} 2...
Nf6 {[%clk 0:02:50.2]} 3. e5 {[%clk 0:03:03.4]} 3... Nd5 {[%clk 0:02:51.4]} 4.
d4 {[%clk 0:03:05.3]} 4... cxd4 {[%clk 0:02:48.5]} 5. cxd4 {[%clk 0:03:07.2]}
5... e6 {[%clk 0:02:49.5]} 6. Nf3 {[%clk 0:03:08]} 6... b6 {[%clk 0:02:50.2]} 7.
Nc3 {[%clk 0:03:02]} 7... Bb7 {[%clk 0:02:51]} 8. Bd3 {[%clk 0:03:01.4]} 8...
Be7 {[%clk 0:02:49.1]} 9. O-O {[%clk 0:03:00]} 9... Nxc3 {[%clk 0:02:49.8]} 10.
bxc3 {[%clk 0:02:58.6]} 10... Nc6 {[%clk 0:02:48.2]} 11. Re1 {[%clk 0:02:52.3]}
11... O-O {[%clk 0:02:44.1]} 12. Qc2 {[%clk 0:02:51.3]} 12... g6 {[%clk
0:02:38.4]} 13. h4 {[%clk 0:02:35.3]} 13... Rc8 {[%clk 0:02:38.7]} 14. Rb1
{[%clk 0:02:21]} 14... Nb4 {[%clk 0:02:36.5]} 15. Rxb4 {[%clk 0:02:10.8]} 15...
Bxb4 {[%clk 0:02:36.8]} 16. Bg5 {[%clk 0:01:44.3]} 16... Be7 {[%clk 0:02:37.1]}
17. Bh6 {[%clk 0:01:41.2]} 17... Bxh4 {[%clk 0:02:37.8]} 18. Bxf8 {[%clk
0:01:36.8]} 18... Kxf8 {[%clk 0:02:38.5]} 19. Be4 {[%clk 0:01:38.1]} 19... Bxe4
{[%clk 0:02:36.5]} 20. Qxe4 {[%clk 0:01:40]} 20... Be7 {[%clk 0:02:37.7]} 21. d5
{[%clk 0:01:32.3]} 21... exd5 {[%clk 0:02:35.5]} 22. Qxd5 {[%clk 0:01:34.2]}
22... Rxc3 {[%clk 0:02:35.6]} 23. Nd2 {[%clk 0:01:16.6]} 23... Qc8 {[%clk
0:02:17.2]} 24. Ne4 {[%clk 0:01:12.4]} 24... Rc1 {[%clk 0:02:18.2]} 25. Rxc1
{[%clk 0:01:09.6]} 25... Qxc1+ {[%clk 0:02:18.2]} 26. Kh2 {[%clk 0:01:11.2]}
26... Qc6 {[%clk 0:02:17.9]} 27. Qd3 {[%clk 0:01:06.2]} 27... b5 {[%clk
0:02:09]} 28. g3 {[%clk 0:01:01.4]} 28... Qc4 {[%clk 0:02:05.6]} 29. Qe3 {[%clk
0:01:00.2]} 29... Kg7 {[%clk 0:02:03.1]} 30. Nd6 {[%clk 0:00:29.7]} 30... Bxd6
{[%clk 0:02:03.5]} 31. exd6 {[%clk 0:00:31.6]} 31... Qxa2 {[%clk 0:02:04.7]} 32.
Qd4+ {[%clk 0:00:13.5]} 32... f6 {[%clk 0:02:04.3]} 33. g4 {[%clk 0:00:14.7]}
33... Qe6 {[%clk 0:02:03.3]} 34. Qxa7 {[%clk 0:00:15.2]} 34... Qxd6+ {[%clk
0:02:04.2]} 35. Kg2 {[%clk 0:00:16.6]} 35... Qd5+ {[%clk 0:02:03.8]} 36. f3
{[%clk 0:00:17.9]} 36... b4 {[%clk 0:02:05]} 37. Qb6 {[%clk 0:00:19.3]} 37... b3
{[%clk 0:02:06.2]} 38. Qb4 {[%clk 0:00:20]} 38... h5 {[%clk 0:02:04.4]} 39. Qc3
{[%clk 0:00:21.4]} 39... hxg4 {[%clk 0:02:05]} 0-1

[Event "*** Titled Tuesday Blitz"]
[Site "Chess.com"]
[Date "2018.06.05"]
[Round "6"]
[White "Zaven_ChessMood"]
[Black "Infernal_XaM"]
[Result "1-0"]
[WhiteElo "2893"]
[BlackElo "2746"]
[TimeControl "180+2"]
[EndTime "14:26:48 PDT"]
[Termination "Zaven_ChessMood won by resignation"]

1. e4 {[%clk 0:03:01.9]} 1... c5 {[%clk 0:03:00.9]} 2. Nf3 {[%clk 0:03:02.5]}
2... b6 {[%clk 0:03:01.7]} 3. d4 {[%clk 0:03:01.5]} 3... cxd4 {[%clk 0:03:03]}
4. Nxd4 {[%clk 0:03:03.1]} 4... Bb7 {[%clk 0:03:04.5]} 5. Nc3 {[%clk 0:03:04.6]}
5... a6 {[%clk 0:03:05.4]} 6. Bd3 {[%clk 0:03:05.6]} 6... e6 {[%clk 0:03:05.6]}
7. O-O {[%clk 0:03:03.3]} 7... Qc7 {[%clk 0:03:06.6]} 8. f4 {[%clk 0:02:58]}
8... Bc5 {[%clk 0:03:06.9]} 9. Be3 {[%clk 0:02:52.7]} 9... Nc6 {[%clk
0:03:07.6]} 10. Nce2 {[%clk 0:02:50.5]} 10... Nxd4 {[%clk 0:03:08.5]} 11. Nxd4
{[%clk 0:02:49.4]} 11... Nf6 {[%clk 0:03:09.3]} 12. Qf3 {[%clk 0:02:45.9]} 12...
d6 {[%clk 0:02:58.4]} 13. Rae1 {[%clk 0:02:42.4]} 13... O-O {[%clk 0:02:56.3]}
14. Kh1 {[%clk 0:02:32.7]} 14... b5 {[%clk 0:02:55.2]} 15. c3 {[%clk 0:02:29.4]}
15... Rad8 {[%clk 0:02:54.6]} 16. Bf2 {[%clk 0:02:26.1]} 16... e5 {[%clk
0:02:39.4]} 17. Nf5 {[%clk 0:02:23.7]} 17... Bxf2 {[%clk 0:02:39.4]} 18. Qxf2
{[%clk 0:02:22]} 18... d5 {[%clk 0:02:31.1]} 19. Qg3 {[%clk 0:02:13]} 19... g6
{[%clk 0:02:19.5]} 20. fxe5 {[%clk 0:02:11]} 20... dxe4 {[%clk 0:01:46.7]} 21.
Bc2 {[%clk 0:02:02.6]} 21... Nh5 {[%clk 0:01:43.2]} 22. Qg5 {[%clk 0:01:59.9]}
22... Rde8 {[%clk 0:01:37]} 23. Nd6 {[%clk 0:01:54]} 23... Re7 {[%clk
0:01:20.4]} 24. Bb3 {[%clk 0:01:51.1]} 24... Kh8 {[%clk 0:01:07.1]} 25. Qh6
{[%clk 0:01:48.6]} 25... Ng7 {[%clk 0:00:57.6]} 26. Re3 {[%clk 0:01:47.6]} 26...
Rd8 {[%clk 0:00:20.8]} 27. Rh3 {[%clk 0:01:42.9]} 27... Nh5 {[%clk 0:00:21.8]}
28. Rxh5 {[%clk 0:01:41.2]} 28... f5 {[%clk 0:00:23]} 29. Qxg6 {[%clk
0:01:35.7]} 29... e3 {[%clk 0:00:24]} 30. Qf6+ {[%clk 0:01:26.6]} 30... Rg7
{[%clk 0:00:25]} 31. Nf7+ {[%clk 0:01:21.4]} 31... Qxf7 {[%clk 0:00:25.9]} 32.
Qxd8+ {[%clk 0:01:10.5]} 32... Rg8 {[%clk 0:00:26.7]} 33. Qxg8+ {[%clk
0:01:08.7]} 1-0

[Event "*** Titled Tuesday Blitz"]
[Site "Chess.com"]
[Date "2018.06.05"]
[Round "6"]
[White "Jadeit90"]
[Black "TomPolgar"]
[Result "1-0"]
[WhiteElo "2197"]
[BlackElo "2241"]
[TimeControl "180+2"]
[EndTime "14:26:49 PDT"]
[Termination "Jadeit90 won on time"]

1. g3 {[%clk 0:03:01.9]} 1... Nf6 {[%clk 0:03:00.3]} 2. Bg2 {[%clk 0:03:01.6]}
2... g6 {[%clk 0:03:00.6]} 3. c4 {[%clk 0:03:02.3]} 3... Bg7 {[%clk 0:02:58.1]}
4. Nf3 {[%clk 0:02:59.6]} 4... O-O {[%clk 0:02:58.6]} 5. O-O {[%clk 0:02:59.9]}
5... d6 {[%clk 0:02:59.6]} 6. Nc3 {[%clk 0:02:57.1]} 6... Nc6 {[%clk 0:02:59]}
7. d3 {[%clk 0:02:57.5]} 7... Nh5 {[%clk 0:02:55.4]} 8. Rb1 {[%clk 0:02:58.2]}
8... a5 {[%clk 0:02:55.5]} 9. a3 {[%clk 0:02:59]} 9... f5 {[%clk 0:02:56]} 10.
Bd2 {[%clk 0:02:59.8]} 10... f4 {[%clk 0:02:55.3]} 11. b4 {[%clk 0:03:00.5]}
11... axb4 {[%clk 0:02:55.7]} 12. axb4 {[%clk 0:03:02.4]} 12... Bg4 {[%clk
0:02:49.9]} 13. b5 {[%clk 0:03:03]} 13... Nd4 {[%clk 0:02:33.4]} 14. Nxd4 {[%clk
0:02:54.5]} 14... Bxd4 {[%clk 0:02:35.3]} 15. Ne4 {[%clk 0:02:48.1]} 15... fxg3
{[%clk 0:02:19.5]} 16. hxg3 {[%clk 0:02:47.7]} 16... Ra2 {[%clk 0:02:19.6]} 17.
Bf3 {[%clk 0:02:28.5]} 17... Bh3 {[%clk 0:01:24.4]} 18. Bg2 {[%clk 0:02:08.1]}
18... Bg4 {[%clk 0:01:20.9]} 19. Bf3 {[%clk 0:02:09.2]} 19... Qd7 {[%clk
0:01:22.3]} 20. Ng5 {[%clk 0:02:09.3]} 20... Nxg3 {[%clk 0:01:11.3]} 21. Re1
{[%clk 0:02:09.3]} 21... Bxf3 {[%clk 0:01:06.9]} 22. exf3 {[%clk 0:02:05.6]}
22... h6 {[%clk 0:01:02.1]} 23. Ne6 {[%clk 0:02:03.1]} 23... Ba7 {[%clk
0:00:47.1]} 24. b6 {[%clk 0:01:56.6]} 24... Bxb6 {[%clk 0:00:35.1]} 25. Rxb6
{[%clk 0:01:57.3]} 25... cxb6 {[%clk 0:00:36.3]} 26. fxg3 {[%clk 0:01:56.5]}
26... Rf6 {[%clk 0:00:29.9]} 27. Nf4 {[%clk 0:01:54.5]} 27... e5 {[%clk
0:00:24.7]} 28. Nd5 {[%clk 0:01:55.1]} 28... Rf7 {[%clk 0:00:24.5]} 29. Kg2
{[%clk 0:01:53.4]} 29... Qf5 {[%clk 0:00:24.6]} 30. Re3 {[%clk 0:01:52.4]} 30...
g5 {[%clk 0:00:17.2]} 31. g4 {[%clk 0:01:50]} 31... Qd7 {[%clk 0:00:13.4]} 32.
Qe2 {[%clk 0:01:50.4]} 32... Qa4 {[%clk 0:00:09.6]} 33. Qf2 {[%clk 0:01:49.3]}
33... Qd1 {[%clk 0:00:09.2]} 34. Re2 {[%clk 0:01:49.1]} 34... b5 {[%clk
0:00:09.8]} 35. Nc3 {[%clk 0:01:39.6]} 35... Rb2 {[%clk 0:00:07.2]} 36. Nxd1
{[%clk 0:01:40.6]} 1-0

[Event "*** Titled Tuesday Blitz"]
[Site "Chess.com"]
[Date "2018.06.05"]
[Round "6"]
[White "Anurag328"]
[Black "aa175"]
[Result "1-0"]
[WhiteElo "2655"]
[BlackElo "1891"]
[TimeControl "180+2"]
[EndTime "14:26:56 PDT"]
[Termination "Anurag328 won by checkmate"]

1. a3 {[%clk 0:03:01.9]} 1... e5 {[%clk 0:02:49.7]} 2. b3 {[%clk 0:03:03.2]}
2... d5 {[%clk 0:02:50.5]} 3. Bb2 {[%clk 0:03:05.1]} 3... Nd7 {[%clk 0:02:41.9]}
4. g3 {[%clk 0:03:06.3]} 4... c6 {[%clk 0:02:42.1]} 5. Bg2 {[%clk 0:03:07.9]}
5... Bd6 {[%clk 0:02:42.9]} 6. c4 {[%clk 0:03:09.3]} 6... d4 {[%clk 0:02:36.2]}
7. e3 {[%clk 0:03:10.1]} 7... c5 {[%clk 0:02:37.2]} 8. b4 {[%clk 0:03:06.1]}
8... Ngf6 {[%clk 0:02:18.3]} 9. d3 {[%clk 0:03:07.4]} 9... Qb6 {[%clk
0:02:02.8]} 10. b5 {[%clk 0:03:08.1]} 10... O-O {[%clk 0:02:00.6]} 11. Ne2
{[%clk 0:03:02.6]} 11... a6 {[%clk 0:01:39.4]} 12. a4 {[%clk 0:02:58.5]} 12...
Qa5+ {[%clk 0:01:29]} 13. Qd2 {[%clk 0:02:40.6]} 13... Qxd2+ {[%clk 0:01:10.8]}
14. Nxd2 {[%clk 0:02:40]} 14... Nb6 {[%clk 0:01:01.8]} 15. a5 {[%clk 0:02:31.7]}
15... Nbd7 {[%clk 0:01:00]} 16. O-O {[%clk 0:02:27.7]} 16... Re8 {[%clk
0:00:41.8]} 17. h3 {[%clk 0:02:28.4]} 17... Nf8 {[%clk 0:00:33.5]} 18. g4 {[%clk
0:02:29.3]} 18... h6 {[%clk 0:00:32]} 19. Ng3 {[%clk 0:02:30.3]} 19... g6 {[%clk
0:00:14.4]} 20. Nge4 {[%clk 0:02:30.8]} 20... Be7 {[%clk 0:00:12.3]} 21. Nxf6+
{[%clk 0:02:31.3]} 21... Bxf6 {[%clk 0:00:14.2]} 22. Ne4 {[%clk 0:02:32.4]}
22... Be7 {[%clk 0:00:15.8]} 23. exd4 {[%clk 0:02:33.6]} 23... exd4 {[%clk
0:00:15.1]} 24. Rfe1 {[%clk 0:02:33.4]} 24... Bd7 {[%clk 0:00:14.4]} 25. Nd2
{[%clk 0:02:28.6]} 25... Rab8 {[%clk 0:00:07.5]} 26. b6 {[%clk 0:02:26.8]} 26...
Bd6 {[%clk 0:00:05.6]} 27. Ne4 {[%clk 0:02:27.1]} 27... Be7 {[%clk 0:00:03.7]}
28. Bc1 {[%clk 0:02:28.6]} 28... Bc6 {[%clk 0:00:04.7]} 29. Bxh6 {[%clk
0:02:29.3]} 29... Ne6 {[%clk 0:00:03.6]} 30. Bd2 {[%clk 0:02:16.6]} 30... Kh7
{[%clk 0:00:04.8]} 31. Re2 {[%clk 0:02:17.7]} 31... Rg8 {[%clk 0:00:05.9]} 32.
Rae1 {[%clk 0:02:19.1]} 32... f5 {[%clk 0:00:05.1]} 33. Ng3 {[%clk 0:02:16.1]}
33... Bxg2 {[%clk 0:00:04.2]} 34. Rxe6 {[%clk 0:02:17.1]} 34... Bxh3 {[%clk
0:00:02]} 35. Rxe7+ {[%clk 0:02:18.4]} 35... Rg7 {[%clk 0:00:03]} 36. f3 {[%clk
0:02:02.8]} 36... fxg4 {[%clk 0:00:03.3]} 37. f4 {[%clk 0:02:04.4]} 37... Rxe7
{[%clk 0:00:02.6]} 38. Rxe7+ {[%clk 0:02:05.3]} 38... Kh6 {[%clk 0:00:02.8]} 39.
f5+ {[%clk 0:01:58.9]} 39... g5 {[%clk 0:00:04.1]} 40. Ne4 {[%clk 0:01:57.8]}
40... Rg8 {[%clk 0:00:02.2]} 41. Kh2 {[%clk 0:01:56.1]} 41... Kh5 {[%clk
0:00:02.6]} 42. Rh7# {[%clk 0:01:55.6]} 1-0

[Event "*** Titled Tuesday Blitz"]
[Site "Chess.com"]
[Date "2018.06.05"]
[Round "6"]
[White "DiogenesSinopeus"]
[Black "Ar4uha"]
[Result "0-1"]
[WhiteElo "2427"]
[BlackElo "2582"]
[TimeControl "180+2"]
[EndTime "14:26:59 PDT"]
[Termination "Ar4uha won by resignation"]

1. d4 {[%clk 0:03:01.9]} 1... Nf6 {[%clk 0:02:58.8]} 2. c4 {[%clk 0:03:02.9]}
2... e6 {[%clk 0:03:00]} 3. Nc3 {[%clk 0:03:03.9]} 3... Bb4 {[%clk 0:03:01]} 4.
e3 {[%clk 0:03:05.2]} 4... O-O {[%clk 0:03:00.7]} 5. Bd3 {[%clk 0:03:06.3]} 5...
b6 {[%clk 0:02:59.9]} 6. Ne2 {[%clk 0:02:59.5]} 6... Bb7 {[%clk 0:02:52.4]} 7.
O-O {[%clk 0:03:00.9]} 7... d5 {[%clk 0:02:51.7]} 8. b3 {[%clk 0:02:49.1]} 8...
Nbd7 {[%clk 0:02:49.1]} 9. Bb2 {[%clk 0:02:48.8]} 9... a6 {[%clk 0:02:45.5]} 10.
Qc2 {[%clk 0:02:40.9]} 10... Rc8 {[%clk 0:02:42.5]} 11. e4 {[%clk 0:02:41.9]}
11... dxe4 {[%clk 0:02:34]} 12. Nxe4 {[%clk 0:02:42.4]} 12... Nxe4 {[%clk
0:02:34.1]} 13. Bxe4 {[%clk 0:02:43.5]} 13... Bxe4 {[%clk 0:02:36]} 14. Qxe4
{[%clk 0:02:45.2]} 14... Nf6 {[%clk 0:02:35.9]} 15. Qf3 {[%clk 0:02:40.6]} 15...
Be7 {[%clk 0:02:30.2]} 16. Rad1 {[%clk 0:02:37.8]} 16... Qd7 {[%clk 0:02:30.5]}
17. Nf4 {[%clk 0:02:33.8]} 17... c6 {[%clk 0:02:23.7]} 18. Nd3 {[%clk
0:02:31.2]} 18... b5 {[%clk 0:02:02.1]} 19. Ne5 {[%clk 0:02:31.8]} 19... Qb7
{[%clk 0:02:03.4]} 20. cxb5 {[%clk 0:02:22.8]} 20... axb5 {[%clk 0:01:58.5]} 21.
Rc1 {[%clk 0:02:22.8]} 21... Nd5 {[%clk 0:01:59.9]} 22. h3 {[%clk 0:02:06.2]}
22... Qa6 {[%clk 0:01:55.9]} 23. a3 {[%clk 0:01:59]} 23... Bd6 {[%clk
0:01:51.9]} 24. Rfd1 {[%clk 0:01:45.8]} 24... Bxe5 {[%clk 0:01:51.1]} 25. dxe5
{[%clk 0:01:47.7]} 25... c5 {[%clk 0:01:52.8]} 26. Rxd5 {[%clk 0:01:05.4]} 26...
exd5 {[%clk 0:01:52.4]} 27. Qxd5 {[%clk 0:01:07.3]} 27... Qe6 {[%clk 0:01:47.1]}
28. Qb7 {[%clk 0:00:56.4]} 28... Qxb3 {[%clk 0:01:47.3]} 29. Ba1 {[%clk
0:00:46.9]} 29... Qxa3 {[%clk 0:01:46.4]} 30. Rb1 {[%clk 0:00:44.2]} 30... Rb8
{[%clk 0:01:42.2]} 31. Qe7 {[%clk 0:00:41.3]} 31... Qa2 {[%clk 0:01:42.4]} 32.
Re1 {[%clk 0:00:38]} 32... Qe6 {[%clk 0:01:41.5]} 33. Qxc5 {[%clk 0:00:39.2]}
33... b4 {[%clk 0:01:42.8]} 34. Bb2 {[%clk 0:00:33.8]} 34... h6 {[%clk
0:01:43.8]} 35. Kh1 {[%clk 0:00:34.8]} 35... b3 {[%clk 0:01:43]} 36. f4 {[%clk
0:00:35.9]} 36... Rfc8 {[%clk 0:01:42.9]} 37. Qd4 {[%clk 0:00:32.1]} 37... Rc2
{[%clk 0:01:42.6]} 38. Rf1 {[%clk 0:00:26.6]} 38... Qc4 {[%clk 0:01:33.9]} 39.
Qd6 {[%clk 0:00:22.5]} 39... Qxf1+ {[%clk 0:01:34.1]} 0-1

[Event "*** Titled Tuesday Blitz"]
[Site "Chess.com"]
[Date "2018.06.05"]
[Round "6"]
[White "ChessMavenYeti"]
[Black "twitchTriniCupid"]
[Result "1-0"]
[WhiteElo "2142"]
[BlackElo "2241"]
[TimeControl "180+2"]
[EndTime "14:27:00 PDT"]
[Termination "ChessMavenYeti won by resignation"]

1. Nf3 {[%clk 0:03:01.9]} 1... d5 {[%clk 0:02:59.9]} 2. g3 {[%clk 0:03:02.7]}
2... Nf6 {[%clk 0:03:00.2]} 3. Bg2 {[%clk 0:03:04.1]} 3... Bf5 {[%clk
0:03:01.6]} 4. O-O {[%clk 0:03:03.7]} 4... c6 {[%clk 0:03:03]} 5. c4 {[%clk
0:03:02.2]} 5... e6 {[%clk 0:03:01]} 6. cxd5 {[%clk 0:03:01.9]} 6... exd5 {[%clk
0:02:56.7]} 7. d3 {[%clk 0:03:02.3]} 7... Be7 {[%clk 0:02:57]} 8. Nc3 {[%clk
0:03:02]} 8... O-O {[%clk 0:02:57.1]} 9. Re1 {[%clk 0:02:57.9]} 9... h6 {[%clk
0:02:55]} 10. Nd4 {[%clk 0:02:58.1]} 10... Bh7 {[%clk 0:02:53.4]} 11. e4 {[%clk
0:02:59.3]} 11... dxe4 {[%clk 0:02:53.2]} 12. dxe4 {[%clk 0:02:58]} 12... Bc5
{[%clk 0:02:38.6]} 13. Nf5 {[%clk 0:02:55.6]} 13... Bxf5 {[%clk 0:02:24.3]} 14.
exf5 {[%clk 0:02:30.9]} 14... Qb6 {[%clk 0:02:23.4]} 15. Qc2 {[%clk 0:02:27.9]}
15... Bb4 {[%clk 0:02:18.3]} 16. Be3 {[%clk 0:02:26.9]} 16... Qa5 {[%clk
0:02:16.1]} 17. Bd4 {[%clk 0:02:14.5]} 17... Nbd7 {[%clk 0:02:16.4]} 18. a3
{[%clk 0:02:07.7]} 18... Bd6 {[%clk 0:02:13.2]} 19. b4 {[%clk 0:02:06.1]} 19...
Qc7 {[%clk 0:02:12.4]} 20. Rac1 {[%clk 0:02:05]} 20... Rfe8 {[%clk 0:01:55]} 21.
Rxe8+ {[%clk 0:02:02.2]} 21... Rxe8 {[%clk 0:01:55.4]} 22. Nb5 {[%clk
0:02:02.9]} 22... cxb5 {[%clk 0:01:42.1]} 23. Qxc7 {[%clk 0:02:03.5]} 23... Bxc7
{[%clk 0:01:44]} 24. Rxc7 {[%clk 0:02:04.3]} 24... Re1+ {[%clk 0:01:43.9]} 25.
Bf1 {[%clk 0:02:05.7]} 25... a6 {[%clk 0:01:31.1]} 26. Rxb7 {[%clk 0:02:04.4]}
26... Rd1 {[%clk 0:01:17.8]} 27. Be3 {[%clk 0:01:47.8]} 27... Ne5 {[%clk
0:01:17.2]} 28. Kg2 {[%clk 0:01:48.6]} 28... Neg4 {[%clk 0:01:00.7]} 29. Rb8+
{[%clk 0:01:47.4]} 29... Kh7 {[%clk 0:01:01.4]} 30. Bc5 {[%clk 0:01:43.6]} 30...
Nxh2 {[%clk 0:00:53.1]} 31. Bxb5 {[%clk 0:01:35.5]} 31... axb5 {[%clk
0:00:51.7]} 32. Kxh2 {[%clk 0:01:36.4]} 32... Ne4 {[%clk 0:00:49.3]} 33. Kg2
{[%clk 0:01:36.7]} 33... Nc3 {[%clk 0:00:43.5]} 34. Rf8 {[%clk 0:01:25.8]} 34...
Rd3 {[%clk 0:00:38.1]} 35. Rxf7 {[%clk 0:01:21.7]} 35... Kg8 {[%clk 0:00:38.7]}
36. Rf8+ {[%clk 0:01:22.4]} 36... Kh7 {[%clk 0:00:39.2]} 37. Rb8 {[%clk
0:01:18.8]} 37... Rd5 {[%clk 0:00:35.4]} 38. g4 {[%clk 0:01:18.7]} 38... h5
{[%clk 0:00:32.1]} 39. f3 {[%clk 0:01:18.1]} 39... hxg4 {[%clk 0:00:32.4]} 40.
fxg4 {[%clk 0:01:19.5]} 40... g6 {[%clk 0:00:32.1]} 41. f6 {[%clk 0:01:18.5]}
1-0